fUST/lending_fUST_20251230
["ID","MTS","AMOUNT","RATE_DAILY","PERIOD"]
[400067372,1767063038095,-500.0,0.00013098,2]
[400067373,1767063038105,-500.0,0.00013098,2]
[400067374,1767063038114,-500.0,0.00013098,2]
[400067375,1767063038123,-500.0,0.00013098,2]
[400067376,1767063038133,-500.0,0.00013098,2]
[400067377,1767063038142,-294.55876299,0.00013098,2]
[400067378,1767063038153,-205.44123701,0.00013098,2]
[400067379,1767063038163,-500.0,0.00013098,2]
[400067380,1767063038172,-500.0,0.00013098,2]
[400067381,1767063038181,-500.0,0.00013098,2]
[400067383,1767063038190,-500.0,0.00013098,2]
[400067384,1767063038200,-500.0,0.00013098,2]
[400067386,1767063038209,-500.0,0.00013098,2]
[400067387,1767063038219,-153.95689625,0.00013098,2]
[400067388,1767063038228,-606.54473632,0.00013098,2]
[400067389,1767063038238,-626.81628651,0.00013098,2]
[400067390,1767063038248,-25773.66214917,0.00013099,2]
[400067391,1767063038261,-768077.1572716,0.00013099,2]
[400067392,1767063038273,-3779.83177382,0.00013099,2]
[400067393,1767063038289,-6100.50236508,0.00013099,2]
[400067395,1767063038301,-25120.01581791,0.00013099,2]
[400067397,1767063038312,-6923.34874644,0.00013099,2]
[400067399,1767063038324,-157911.66020549,0.00013099,2]
[400067401,1767063038334,-232.0295212,0.00013148,2]
[400067402,1767063038343,-627.92,0.00013161,2]
[400067403,1767063038353,-1200.0,0.00013198,2]
[400067404,1767063038363,-153.87,0.00013198,2]
[400067405,1767063038373,-1006.17336157,0.00013199,2]
[400067406,1767063038383,-152.59794389,0.00013199,2]
[400067407,1767063038394,-302.26783046,0.00013273,2]
[400067408,1767063038403,-500.0,0.00013273,2]
[400067409,1767063038414,-176.58936227,0.00013273,2]
[400067410,1767063038424,-510.96110175,0.00013273,2]
[400067411,1767063038433,-500.0,0.00013273,2]
[400067412,1767063038443,-500.0,0.00013273,2]
[400067413,1767063038453,-500.0,0.00013273,2]
[400067414,1767063038463,-500.0,0.00013273,2]
[400067415,1767063038474,-500.0,0.00013273,2]
[400067416,1767063038483,-500.0,0.00013273,2]
[400067417,1767063038493,-500.0,0.00013273,2]
[400067418,1767063038503,-165.40870093,0.00013273,2]
[400067419,1767063038513,-500.15325233,0.00013273,2]
[400067420,1767063038523,-500.0,0.00013273,2]
[400067421,1767063038533,-283.15409111,0.00013273,2]
[400067422,1767063038543,-217.77534712,0.00013273,2]
[400067423,1767063038553,-500.0,0.00013273,2]
[400067424,1767063038562,-500.0,0.00013273,2]
[400067425,1767063038572,-500.0,0.00013273,2]
[400067426,1767063038582,-500.0,0.00013273,2]
[400067427,1767063038591,-500.0,0.00013273,2]
[400067428,1767063038601,-500.0,0.00013273,2]
[400067429,1767063038611,-500.0,0.00013273,2]
[400067430,1767063038620,-500.0,0.00013273,2]
[400067431,1767063038631,-500.0,0.00013273,2]
[400067432,1767063038642,-500.0,0.00013273,2]
[400067433,1767063038651,-500.0,0.00013273,2]
[400067434,1767063038661,-500.0,0.00013273,2]
[400067435,1767063038670,-500.0,0.00013273,2]
[400067436,1767063038680,-500.0,0.00013273,2]
[400067437,1767063038689,-500.0,0.00013273,2]
[400067438,1767063038699,-500.0,0.00013273,2]
[400067439,1767063038708,-500.0,0.00013273,2]
[400067440,1767063038718,-500.41782704,0.00013273,2]
[400067441,1767063038729,-535.90784509,0.00013273,2]
[400067442,1767063038742,-500.4159557,0.00013273,2]
[400067443,1767063038751,-270.09084155,0.00013273,2]
[400067444,1767063038761,-500.0,0.00013273,2]
[400067445,1767063038771,-185.30799155,0.00013273,2]
[400067446,1767063038783,-210.52500245,0.00013273,2]
[400067447,1767063038793,-500.61073285,0.00013273,2]
[400067448,1767063038803,-171.46724049,0.00013273,2]
[400067449,1767063038812,-500.0,0.00013273,2]
[400067450,1767063038822,-500.0,0.00013273,2]
[400067451,1767063038832,-500.0,0.00013273,2]
[400067452,1767063038842,-500.0,0.00013273,2]
[400067453,1767063038852,-500.0,0.00013273,2]
[400067454,1767063038862,-500.0,0.00013273,2]
[400067455,1767063038872,-500.0,0.00013273,2]
[400067456,1767063038882,-500.0,0.00013273,2]
[400067457,1767063038893,-500.0,0.00013273,2]
[400067458,1767063038903,-500.0,0.00013273,2]
[400067459,1767063038912,-500.0,0.00013273,2]
[400067460,1767063038922,-500.0,0.00013273,2]
[400067461,1767063038932,-159.20798876,0.00013273,2]
[400067462,1767063038942,-512.45793645,0.00013273,2]
[400067463,1767063038951,-268.5150951,0.00013273,2]
[400067464,1767063038960,-500.61449572,0.00013273,2]
[400067465,1767063038969,-500.0,0.00013273,2]
[400067466,1767063038978,-500.0,0.00013273,2]
[400067467,1767063038988,-500.0,0.00013273,2]
[400067468,1767063038998,-600.0,0.00013462,2]
[400067469,1767063039008,-300.0,0.00013462,2]
[400067470,1767063039019,-300.0,0.00013462,2]
[400067471,1767063039029,-300.0,0.00013462,2]
[400067472,1767063039039,-300.0,0.00013462,2]
[400067473,1767063039048,-300.0,0.00013462,2]
[400067474,1767063039057,-300.0,0.00013462,2]
[400067475,1767063039067,-300.0,0.00013462,2]
[400067476,1767063039076,-300.0,0.00013462,2]
[400067477,1767063039085,-300.0,0.00013462,2]
[400067478,1767063039095,-300.0,0.00013462,2]
[400067479,1767063039105,-300.0,0.00013462,2]
[400067480,1767063039114,-300.0,0.00013462,2]
[400067481,1767063039125,-300.0,0.00013462,2]
[400067482,1767063039134,-300.0,0.00013462,2]
[400067483,1767063039143,-300.0,0.00013462,2]
[400067484,1767063039153,-153.87,0.00013472,2]
[400067485,1767063039162,-10000.0,0.0001354,2]
[400067486,1767063039172,-500.0,0.00013547,2]
[400067487,1767063039181,-300.0,0.00013673,2]
[400067488,1767063039190,-175.88826675,0.00013698,2]
[400067489,1767063039200,-308.96684295,0.00013698,2]
[400067490,1767063039211,-500.0,0.00013698,2]
[400067491,1767063039221,-536.46348193,0.00013698,2]
[400067492,1767063039233,-528.29778119,0.00013698,2]
[400067493,1767063039243,-569.18570614,0.00013698,2]
[400067494,1767063039252,-507.52539763,0.00013698,2]
[400067495,1767063039261,-500.0,0.00013698,2]
[400067496,1767063039271,-500.0,0.00013698,2]
[400067497,1767063039279,-500.0,0.00013698,2]
[400067498,1767063039288,-501.25655426,0.00013698,2]
[400067499,1767063039298,-637.669394,0.00013699,2]
[400067500,1767063039307,-500.0,0.00013699,2]
[400067501,1767063039316,-500.30716217,0.00013699,2]
[400067502,1767063039326,-501.2548896,0.00013699,2]
[400067503,1767063039335,-502.34096453,0.00013699,2]
[400067504,1767063039344,-501.17569243,0.00013699,2]
[400067505,1767063039354,-500.87185466,0.00013699,2]
[400067506,1767063039363,-157.57068447,0.00013699,2]
[400067507,1767063039372,-500.0,0.00013699,2]
[400067508,1767063039382,-164.39071824,0.00013699,2]
[400067509,1767063039391,-501.26449218,0.00013699,2]
[400067510,1767063039401,-500.0,0.00013699,2]
[400067511,1767063039410,-500.0,0.00013699,2]
[400067512,1767063039419,-343.55118679,0.00013699,2]
[400067513,1767063039430,-502.56460974,0.00013699,2]
[400067514,1767063039439,-346.40609212,0.00013699,2]
[400067515,1767063039448,-500.29842762,0.00013699,2]
[400067516,1767063039457,-500.87409602,0.00013699,2]
[400067517,1767063039466,-165.01125145,0.00013699,2]
[400067518,1767063039475,-178.05611583,0.00013699,2]
[400067519,1767063039485,-307.55036025,0.00013699,2]
[400067520,1767063039494,-267.37089605,0.00013699,2]
[400067521,1767063039503,-500.0,0.00013699,2]
[400067522,1767063039512,-500.0,0.00013699,2]
[400067523,1767063039521,-153.88514916,0.00013745,2]
[400067524,1767063039531,-500.0,0.00013821,2]
[400067525,1767063039540,-1000.0,0.00013821,2]
[400067526,1767063039550,-1000.0,0.00013821,2]
[400067527,1767063039559,-642.65090431,0.00013821,2]
[400067528,1767063039568,-1000.0,0.00013821,2]
[400067529,1767063039577,-1000.0,0.00013821,2]
[400067530,1767063039586,-500.3506446,0.00013821,2]
[400067531,1767063039595,-301.83786907,0.00013821,2]
[400067532,1767063039604,-500.51187945,0.00013821,2]
[400067533,1767063039614,-1000.0,0.00013821,2]
[400067534,1767063039623,-1000.0,0.00013821,2]
[400067535,1767063039633,-1000.0,0.00013821,2]
[400067536,1767063039642,-1000.0,0.00013821,2]
[400067537,1767063039651,-1000.0,0.00013821,2]
[400067538,1767063039661,-1000.0,0.00013821,2]
[400067539,1767063039671,-360.15673032,0.00013821,2]
[400067540,1767063039680,-1000.0,0.00013821,2]
[400067542,1767063039690,-500.65462418,0.00013821,2]
[400067543,1767063039699,-501.17509357,0.00013821,2]
[400067544,1767063039708,-1000.0,0.00013821,2]
[400067545,1767063039717,-500.96078162,0.00013821,2]
[400067546,1767063039727,-1000.0,0.00013821,2]
[400067547,1767063039740,-1000.0,0.00013821,2]
[400067548,1767063039750,-565.67463635,0.00013821,2]
[400067549,1767063039759,-500.80824368,0.00013821,2]
[400067550,1767063039768,-205.15331255,0.00013821,2]
[400067551,1767063039781,-1000.0,0.00013821,2]
[400067553,1767063039795,-1000.0,0.00013821,2]
[400067554,1767063039804,-1000.0,0.00013821,2]
[400067555,1767063039814,-1000.0,0.00013821,2]
[400067558,1767063039915,-1000.0,0.00013821,2]
[400067559,1767063039925,-1000.0,0.00013821,2]
[400067560,1767063039936,-190.39343318,0.00013821,2]
[400067561,1767063039945,-553.36780836,0.00013821,2]
[400067562,1767063039955,-989.12959995,0.00013821,2]
[400067563,1767063039964,-828.95176797,0.00013821,2]
[400067564,1767063039974,-238.10268911,0.00013821,2]
[400067565,1767063039983,-1000.0,0.00013821,2]
[400067566,1767063039992,-1000.0,0.00013821,2]
[400067567,1767063040001,-500.0,0.00014095,2]
[400067568,1767063040011,-168.29183379,0.00014175,2]
[400067569,1767063040020,-598.4228942,0.00014221,2]
[400067570,1767063040029,-304.76708556,0.00014247,2]
[400067571,1767063040039,-1000.90387971,0.00014247,2]
[400067572,1767063040048,-415.49447772,0.00014247,2]
[400067573,1767063040058,-1000.0,0.00014247,2]
[400067574,1767063040067,-1000.0,0.00014247,2]
[400067575,1767063040076,-1000.0,0.00014247,2]
[400067576,1767063040086,-1255.83,0.00014358,2]
[400067577,1767063040096,-420.0,0.00014362,2]
[400067578,1767063040105,-420.0,0.00014362,2]
[400067579,1767063040114,-365.0,0.00014362,2]
[400067580,1767063040123,-560.0,0.00014368,2]
[400067581,1767063040133,-500.0,0.00014368,2]
[400067582,1767063040142,-473.4558059,0.00014368,2]
[400067583,1767063040151,-1500.0,0.00014368,2]
[400067584,1767063040161,-1500.0,0.00014368,2]
[400067585,1767063040170,-1500.0,0.00014368,2]
[400067586,1767063040180,-158.68040829,0.00014368,2]
[400067587,1767063040189,-1502.70056384,0.00014368,2]
[400067588,1767063040198,-1500.0,0.00014368,2]
[400067589,1767063040209,-543.97913442,0.00014368,2]
[400067590,1767063040218,-831.43151188,0.00014368,2]
[400067591,1767063040227,-671.68607604,0.00014368,2]
[400067592,1767063040237,-1500.0,0.00014368,2]
[400067593,1767063040246,-1500.0,0.00014368,2]
[400067594,1767063040255,-1500.0,0.00014368,2]
[400067595,1767063040265,-1500.0,0.00014368,2]
[400067596,1767063040275,-152.01751982,0.00014368,2]
[400067597,1767063040285,-1500.0,0.00014368,2]
[400067599,1767063040294,-1500.0,0.00014368,2]
[400067600,1767063040305,-1398.94970718,0.00014368,2]
[400067601,1767063040314,-500.0,0.00014642,2]
[400067602,1767063040323,-802.96487012,0.00014795,2]
[400067603,1767063040332,-1500.0,0.00014795,2]
[400067604,1767063040342,-1500.0,0.00014795,2]
[400067605,1767063040351,-720.0,0.00014808,2]
[400067606,1767063040362,-500.0,0.00014916,2]
[400067607,1767063040372,-317.81312278,0.00014916,2]
[400067608,1767063040381,-338.65201998,0.00014916,2]
[400067609,1767063040391,-2000.0,0.00014916,2]
[400067610,1767063040407,-1010.07882985,0.00014916,2]
[400067611,1767063040417,-2000.0,0.00014916,2]
[400067612,1767063040426,-2000.0,0.00014916,2]
[400067613,1767063040436,-409.61266692,0.00014916,2]
[400067614,1767063040445,-1064.64904684,0.00014916,2]
[400067615,1767063040454,-2000.0,0.00014916,2]
[400067616,1767063040463,-2000.0,0.00014916,2]
[400067617,1767063040473,-100000.0,0.00015028,2]
[400067618,1767063040482,-273.79483501,0.00015148,2]
[400067619,1767063040491,-500.0,0.0001519,2]
[400067620,1767063040500,-500.0,0.00015242,2]
[400067621,1767063040509,-2000.0,0.00015342,2]
[400067622,1767063040518,-2000.0,0.00015342,2]
[400067623,1767063040527,-500.0,0.00015464,2]
[400067624,1767063040536,-1711.20382489,0.00015464,2]
[400067625,1767063040546,-1008.2661767,0.00015464,2]
[400067626,1767063040554,-2501.83600632,0.00015464,2]
[400067627,1767063040563,-1503.44012174,0.00015464,2]
[400067628,1767063040572,-2500.0,0.00015464,2]
[400067629,1767063040581,-1883.75,0.00015554,2]
[400067630,1767063040591,-180.29628915,0.00015571,2]
[400067631,1767063040600,-160.0,0.0001565,2]
[400067632,1767063040609,-500.0,0.00015738,2]
[400067633,1767063040618,-587.0,0.00015749,2]
[400067634,1767063040628,-587.0,0.00015749,2]
[400067635,1767063040637,-291.85808578,0.00015753,2]
[400067636,1767063040646,-242.72346783,0.00015753,2]
[400067637,1767063040655,-2500.0,0.0001589,2]
[400067638,1767063040664,-2500.0,0.0001589,2]
[400067639,1767063040673,-319.98794575,0.00015999,2]
[400067640,1767063040683,-500.0,0.00016012,2]
[400067641,1767063040692,-1029.65701715,0.00016012,2]
[400067642,1767063040701,-260.0,0.00016198,2]
[400067643,1767063040710,-628.40939462,0.00016286,2]
[400067644,1767063040720,-864.0,0.00016289,2]
[400067645,1767063040730,-500.0,0.00016438,2]
[400067646,1767063040743,-500.0,0.00016438,2]
[400067647,1767063040752,-500.0,0.00016438,2]
[400067648,1767063040762,-540.22358436,0.00016438,2]
[400067649,1767063040771,-500.0,0.00016438,2]
[400067650,1767063040780,-500.0,0.00016438,2]
[400067651,1767063040790,-500.0,0.00016438,2]
[400067652,1767063040800,-500.0,0.00016438,2]
[400067653,1767063040809,-3000.0,0.00016438,2]
[400067654,1767063040818,-3000.0,0.00016438,2]
[400067655,1767063040827,-200.0,0.00016473,2]
[400067656,1767063040837,-1625.71832147,0.00016547,2]
[400067657,1767063040847,-360.0,0.00016746,2]
[400067658,1767063040856,-2511.66,0.00016751,2]
[400067659,1767063040866,-3500.0,0.00016986,2]
[400067660,1767063040875,-3500.0,0.00016986,2]
[400067661,1767063040885,-315.56014883,0.00017148,2]
[400067662,1767063040894,-195.0,0.0001727,2]
[400067663,1767063040903,-823.0,0.0001727,2]
[400067664,1767063040917,-460.0,0.00017294,2]
[400067665,1767063040932,-4000.0,0.00017534,2]
[400067666,1767063040945,-687.39286935,0.00017534,2]
[400067667,1767063040959,-250.0,0.00017643,2]
[400067668,1767063040971,-12457.87634039,0.000178,3]
[400067669,1767063040981,-560.0,0.00017842,2]
[400067670,1767063040995,-278.55403227,0.00017842,2]
[400067671,1767063041007,-1000.0,0.00017917,2]
[400067672,1767063041020,-3139.58,0.00017947,2]
[400067673,1767063041032,-161.0566994,0.00018009,2]
[400067674,1767063041045,-4500.0,0.00018082,2]
[400067675,1767063041057,-660.0,0.0001839,2]
[400067676,1767063041070,-5000.0,0.0001863,2]
[400067677,1767063041083,-319.98794575,0.000189,2]
[400067678,1767063041096,-303.03333336,0.000189,2]
[400067679,1767063041109,-1152.0,0.00018937,2]
[400067680,1767063041119,-760.0,0.00018938,2]
[400067681,1767063041132,-303.03333336,0.00019089,2]
[400067682,1767063041144,-1000.0,0.000191,2]
[400067683,1767063041156,-3767.5,0.00019144,2]
[400067684,1767063041167,-357.32546264,0.00019148,2]
[400067685,1767063041181,-1053.65,0.00019178,2]
[400067686,1767063041195,-1053.65,0.00019178,2]
[400067687,1767063041207,-1053.65,0.00019178,2]
[400067688,1767063041219,-1053.65,0.00019178,2]
[400067689,1767063041229,-1053.65,0.00019178,2]
[400067690,1767063041239,-1053.65,0.00019178,2]
[400067691,1767063041252,-1053.65,0.00019178,2]
[400067692,1767063041263,-1053.65,0.00019178,2]
[400067693,1767063041275,-1053.65,0.00019178,2]
[400067694,1767063041287,-1053.65,0.00019178,2]
[400067695,1767063041300,-1053.65,0.00019178,2]
[400067696,1767063041312,-1053.65,0.00019178,2]
[400067697,1767063041325,-1053.65,0.00019178,2]
[400067698,1767063041337,-1053.65,0.00019178,2]
[400067699,1767063041351,-1053.65,0.00019178,2]
[400067700,1767063041364,-1053.65,0.00019178,2]
[400067701,1767063041376,-1053.65,0.00019178,2]
[400067702,1767063041386,-1053.65,0.00019178,2]
[400067703,1767063041397,-1053.65,0.00019178,2]
[400067704,1767063041407,-1053.65,0.00019178,2]
[400067705,1767063041418,-1053.65,0.00019178,2]
[400067706,1767063041431,-1053.65,0.00019178,2]
[400067707,1767063041444,-1053.65,0.00019178,2]
[400067708,1767063041457,-1053.76627883,0.00019178,2]
[400067709,1767063041469,-5500.0,0.00019178,2]
[400067710,1767063041480,-162.32,0.000192,2]
[400067711,1767063041491,-165.49,0.000192,2]
[400067712,1767063041502,-166.39,0.000192,2]
[400067713,1767063041514,-303.03333336,0.00019278,2]
[400067714,1767063041526,-1409.93,0.000193,2]
[400067715,1767063041537,-11429.67,0.000193,2]
[400067716,1767063041548,-300.0,0.00019315,2]
[400067717,1767063041558,-450.0,0.00019452,2]
[400067718,1767063041569,-303.03333336,0.00019467,2]
[400067719,1767063041581,-860.0,0.00019486,2]
[400067720,1767063041592,-600.0,0.00019589,2]
[400067721,1767063041603,-303.03333336,0.00019656,2]
[400067722,1767063041615,-12457.81,0.000197,3]
[400067723,1767063041626,-1000.0,0.00019709,2]
[400067724,1767063041637,-244.0,0.00019709,2]
[400067725,1767063041648,-6000.0,0.00019726,2]
[400067726,1767063041659,-556.1484877,0.00019726,2]
[400067727,1767063041670,-454.55000005,0.00019845,4]
[400067728,1767063041681,-1662.0,0.0002,2]
[400067729,1767063041692,-1200.0,0.0002,5]
[400067730,1767063041704,-227900.0,0.0002,2]
[400067731,1767063041715,-2000.0,0.0002,7]
[400067732,1767063041725,-454.55000005,0.00020034,4]
[400067733,1767063041738,-960.0,0.00020034,2]
[400067734,1767063041749,-1625.71832147,0.00020046,2]
[400067735,1767063041759,-291.85808578,0.00020161,2]
[400067736,1767063041770,-242.72346783,0.00020161,2]
[400067737,1767063041783,-637.669394,0.00020187,2]
[400067738,1767063041793,-454.55000005,0.00020223,4]
[400067739,1767063041805,-204.33745853,0.00020274,2]
[400067740,1767063041816,-4395.41,0.0002034,2]
[400067741,1767063041827,-454.55000005,0.00020412,4]
[400067742,1767063041837,-1060.0,0.00020582,2]
[400067743,1767063041848,-454.55000005,0.00020601,4]
[400067744,1767063041859,-1613.0,0.00020766,2]
[400067745,1767063041871,-1041.66666667,0.0002081,2]
[400067746,1767063041881,-1160.0,0.00021129,2]
[400067747,1767063041892,-399.09077646,0.00021148,2]
[400067748,1767063041903,-353.7,0.00021177,2]
[400067749,1767063041915,-5023.33,0.00021537,2]
[400067750,1767063041925,-1260.0,0.00021677,2]
[400067751,1767063041936,-1000.0,0.0002168,10]
[400067752,1767063041948,-492.0,0.0002168,10]
[400067753,1767063041958,-319.98794575,0.000218,2]
[400067754,1767063041969,-2000.0,0.00021818,7]
[400067755,1767063041981,-244.84208293,0.00021917,2]
[400067756,1767063041991,-489.36109289,0.00021917,2]
[400067757,1767063042002,-242.92590961,0.00021917,2]
[400067758,1767063042013,-495.99265184,0.00021917,2]
[400067759,1767063042024,-179.66551101,0.00021917,2]
[400067760,1767063042035,-507.48530578,0.00021917,2]
[400067761,1767063042046,-238.33993024,0.00021917,2]
[400067762,1767063042057,-213.95949455,0.00021917,2]
[400067763,1767063042068,-293.41497811,0.00021917,2]
[400067764,1767063042079,-501.68456333,0.00021917,2]
[400067765,1767063042090,-234.10449026,0.00021917,2]
[400067766,1767063042102,-296.24098014,0.00021917,2]
[400067767,1767063042113,-395.08803825,0.00021917,2]
[400067768,1767063042125,-246.85883541,0.00021917,2]
[400067769,1767063042136,-416.42753173,0.00021917,2]
[400067770,1767063042268,-591.60116078,0.00021917,2]
[400067771,1767063042285,-212.49369694,0.00021917,2]
[400067772,1767063042295,-198.05075534,0.00021917,2]
[400067773,1767063042305,-486.41954782,0.00021917,2]
[400067774,1767063042314,-284.77322952,0.00021917,2]
[400067775,1767063042324,-246.39472202,0.00021917,2]
[400067776,1767063042337,-180.75323926,0.00021917,2]
[400067777,1767063042355,-244.92155031,0.00021917,2]
[400067778,1767063042364,-417.36752029,0.00021917,2]
[400067779,1767063042374,-441.1912262,0.00021917,2]
[400067780,1767063042384,-500.0,0.00021917,2]
[400067781,1767063042393,-216.64018666,0.00021917,2]
[400067782,1767063042403,-448.81665893,0.00021917,2]
[400067783,1767063042414,-409.31799387,0.00021917,2]
[400067784,1767063042425,-395.6000019,0.00021917,2]
[400067785,1767063042434,-240.65035094,0.00021917,2]
[400067786,1767063042443,-159.35685397,0.00021917,2]
[400067787,1767063042453,-313.26838819,0.00021917,2]
[400067788,1767063042464,-477.92435001,0.00021917,2]
[400067789,1767063042474,-499.82329983,0.00021917,2]
[400067790,1767063042483,-270.309504,0.00021917,2]
[400067791,1767063042492,-241.812254,0.00021917,2]
[400067792,1767063042502,-285.08202354,0.00021917,2]
[400067793,1767063042511,-492.69043668,0.00021917,2]
[400067795,1767063042521,-245.12772481,0.00021917,2]
[400067797,1767063042530,-473.87727349,0.00021917,2]
[400067798,1767063042539,-592.33106367,0.00021917,2]
[400067799,1767063042548,-193.15983236,0.00021917,2]
[400067800,1767063042558,-331.36752874,0.00021917,2]
[400067801,1767063042567,-202.94786336,0.00021917,2]
[400067803,1767063042576,-431.25014834,0.00021917,2]
[400067805,1767063042586,-501.33640111,0.00021917,2]
[400067807,1767063042596,-184.4666804,0.00021917,2]
[400067809,1767063042605,-500.42949407,0.00021917,2]
[400067811,1767063042615,-490.39925731,0.00021917,2]
[400067813,1767063042624,-502.21013442,0.00021917,2]
[400067815,1767063042633,-164.65948183,0.00021917,2]
[400067817,1767063042642,-314.24489004,0.00021917,2]
[400067819,1767063042651,-164.75840004,0.00021917,2]
[400067821,1767063042660,-461.31122067,0.00021917,2]
[400067823,1767063042670,-476.48352169,0.00021917,2]
[400067825,1767063042680,-497.56652883,0.00021917,2]
[400067827,1767063042690,-526.06878392,0.00021917,2]
[400067829,1767063042699,-289.23720001,0.00021917,2]
[400067831,1767063042708,-888.45427144,0.00021917,2]
[400067833,1767063042717,-161.71508024,0.00021917,2]
[400067834,1767063042727,-264.58772049,0.00021917,2]
[400067835,1767063042741,-209.24808648,0.00021917,2]
[400067837,1767063042750,-500.0,0.00021917,2]
[400067839,1767063042759,-255.68642444,0.00021917,2]
[400067841,1767063042769,-350.31194786,0.00021917,2]
[400067843,1767063042778,-238.25503049,0.00021917,2]
[400067844,1767063042787,-409.14025866,0.00021917,2]
[400067846,1767063042797,-350.89172555,0.00021917,2]
[400067848,1767063042806,-500.85426906,0.00021917,2]
[400067849,1767063042816,-388.23781073,0.00021917,2]
[400067850,1767063042825,-271.49305234,0.00021917,2]
[400067851,1767063042834,-465.38951167,0.00021917,2]
[400067852,1767063042843,-203.68765285,0.00021917,2]
[400067853,1767063042853,-500.0,0.00021917,2]
[400067854,1767063042862,-452.29249023,0.00021917,2]
[400067855,1767063042871,-476.28746272,0.00021917,2]
[400067856,1767063042881,-367.57,0.00021917,2]
[400067857,1767063042890,-381.63449651,0.00021917,2]
[400067858,1767063042899,-1000.0,0.00021917,2]
[400067859,1767063042908,-502.82394057,0.00021917,2]
[400067860,1767063042919,-500.0,0.00021917,2]
[400067861,1767063042929,-312.10792285,0.00021917,2]
[400067862,1767063042939,-218.40529926,0.00021917,2]
[400067863,1767063042948,-504.94852854,0.00021917,2]
[400067864,1767063042958,-500.0,0.00021917,2]
[400067865,1767063042967,-190.15443372,0.00021917,2]
[400067866,1767063042976,-446.47983257,0.00021917,2]
[400067867,1767063042985,-166.77059855,0.00021917,2]
[400067868,1767063042995,-471.20943293,0.00021917,2]
[400067869,1767063043004,-420.59897434,0.00021917,2]
[400067870,1767063043014,-501.06130346,0.00021917,2]
[400067871,1767063043023,-233.18406558,0.00021917,2]
[400067872,1767063043032,-264.81256574,0.00021917,2]
[400067873,1767063043042,-207.55302901,0.00021917,2]
[400067874,1767063043051,-449.52632896,0.00021917,2]
[400067875,1767063043060,-356.03025943,0.00021917,2]
[400067876,1767063043070,-270.05297428,0.00021917,2]
[400067877,1767063043079,-501.88652616,0.00021917,2]
[400067878,1767063043089,-223.46052725,0.00021917,2]
[400067879,1767063043099,-460.4,0.00021917,2]
[400067880,1767063043108,-501.95207316,0.00021917,2]
[400067881,1767063043117,-457.80075992,0.00021917,2]
[400067882,1767063043127,-266.15990212,0.00021917,2]
[400067883,1767063043137,-284.54001776,0.00021917,2]
[400067884,1767063043147,-443.63652163,0.00021917,2]
[400067885,1767063043156,-222.15719484,0.00021917,2]
[400067886,1767063043166,-186.1588418,0.00021917,2]
[400067887,1767063043176,-296.77052659,0.00021917,2]
[400067888,1767063043187,-502.6980363,0.00021917,2]
[400067889,1767063043196,-366.98241924,0.00021917,2]
[400067890,1767063043205,-322.25574061,0.00021917,2]
[400067891,1767063043215,-420.00377493,0.00021917,2]
[400067892,1767063043224,-258.00658869,0.00021917,2]
[400067893,1767063043234,-321.91286166,0.00021917,2]
[400067894,1767063043243,-472.60378467,0.00021917,2]
[400067895,1767063043252,-239.75984511,0.00021917,2]
[400067896,1767063043262,-190.49324555,0.00021917,2]
[400067897,1767063043271,-502.33993876,0.00021917,2]
[400067898,1767063043281,-467.62343338,0.00021917,2]
[400067899,1767063043290,-474.57310077,0.00021917,2]
[400067900,1767063043300,-500.87450242,0.00021917,2]
[400067902,1767063043314,-449.86221356,0.00021917,2]
[400067904,1767063043324,-297.37714473,0.00021917,2]
[400067906,1767063043333,-313.88086763,0.00021917,2]
[400067908,1767063043342,-443.63446877,0.00021917,2]
[400067910,1767063043352,-319.72849913,0.00021917,2]
[400067912,1767063043362,-490.76843281,0.00021917,2]